bitfinex/quotes_BTCUSD_20220202
["timestamp","ask_amount","ask_price","bid_price","bid_amount"]
[1643823110748,2.41497704,37397.0,37396.0,0.05]
[1643823111053,2.41497704,37397.0,37389.0,0.22330873]
[1643823111054,2.19501882,37397.0,37389.0,0.22330873]
[1643823111252,1.84102582,37397.0,37389.0,0.29018169]
[1643823111451,0.18141972,37396.0,37389.0,0.29018169]
[1643823111851,0.00053584,37395.0,37390.0,0.05]
[1643823112659,0.5213714,37396.0,37390.0,0.04990811]
[1643823112854,0.00040143,37394.0,37390.0,0.04990811]
[1643823113800,0.05,37395.0,37389.0,0.06687296]
[1643823114001,0.05,37395.0,37389.0,0.06696485]
[1643823114201,0.0004017,37394.0,37389.0,0.06696485]
[1643823114602,0.0004017,37394.0,37389.0,9.189e-05]
[1643823114801,0.0004017,37394.0,37389.0,0.04990811]
[1643823115001,0.05,37395.0,37389.0,0.31206624]
[1643823115205,0.05,37395.0,37389.0,0.04990811]
[1643823115401,0.00043525,37393.0,37389.0,0.04990811]
[1643823115804,0.00043525,37393.0,37387.0,0.216873]
[1643823115805,0.00043525,37393.0,37388.0,9.189e-05]
[1643823116303,0.05,37395.0,37389.0,0.06687221]
[1643823116504,0.00060085,37392.0,37389.0,0.06687221]
[1643823117546,0.05,37395.0,37389.0,0.06687221]
[1643823117754,0.00043498,37392.0,37389.0,0.06687221]
[1643823118850,0.00043498,37392.0,37391.0,0.21425283]
[1643823119451,0.00043498,37392.0,37389.0,0.06687221]
[1643823119849,0.05,37395.0,37389.0,0.06687221]
[1643823120049,0.00043498,37392.0,37389.0,0.06687221]
[1643823120253,0.00043498,37392.0,37388.0,0.11678111]
[1643823120254,0.00043498,37392.0,37388.0,0.04990811]
[1643823120450,0.00043498,37392.0,37388.0,0.33123101]
[1643823120849,0.02543498,37392.0,37388.0,0.2813229]
[1643823121112,0.025,37392.0,37388.0,0.2813229]
[1643823121513,0.02560056,37392.0,37389.0,0.0668733]
[1643823122311,0.025,37392.0,37389.0,0.0668733]
[1643823122513,0.02560056,37392.0,37388.0,0.2813229]
[1643823123514,0.025,37392.0,37388.0,0.2813229]
[1643823123717,0.02543498,37392.0,37388.0,0.2813229]
[1643823124748,0.025,37392.0,37388.0,0.2813229]
[1643823124948,0.02543498,37392.0,37388.0,0.2813229]
[1643823125353,0.34038666,37392.0,37387.0,0.04990811]
[1643823125559,0.2403168,37391.0,37387.0,0.04990811]
[1643823126053,0.2403168,37391.0,37387.0,0.0449173]
[1643823126054,0.69394468,37390.0,37387.0,0.0449173]
[1643823126250,0.65984275,37389.0,37387.0,0.0449173]
[1643823126451,2.37716647,37388.0,37387.0,0.0449173]
[1643823126750,1.70858619,37388.0,37387.0,0.0449173]
[1643823126949,1.47660379,37388.0,37385.0,0.0050827]
[1643823127149,1.46256247,37388.0,37385.0,0.0050827]
[1643823127349,0.18141972,37387.0,37385.0,0.0050827]
[1643823127550,0.24061692,37386.0,37385.0,0.0050827]
[1643823127749,0.0006002,37389.0,37382.0,0.00010813]
[1643823127949,0.23154112,37389.0,37383.0,0.0449173]
[1643823128152,0.066894,37388.0,37383.0,0.0449173]
[1643823129004,0.31697188,37388.0,37383.0,0.0449173]
[1643823129904,0.00060052,37389.0,37386.0,0.22537419]
[1643823130108,0.00060052,37389.0,37383.0,0.0449173]
[1643823130710,0.05,37391.0,37383.0,0.0449173]
[1643823131004,0.00043497,37389.0,37383.0,0.0449173]
[1643823131807,0.05,37391.0,37383.0,0.0449173]
[1643823131808,0.26698446,37387.0,37383.0,0.0449173]
[1643823132975,0.26698446,37387.0,37382.0,0.0050827]
[1643823133175,0.25537587,37388.0,37382.0,0.0050827]
[1643823133775,0.05,37387.0,37382.0,0.0449173]
[1643823134375,0.24472445,37386.0,37382.0,0.0449173]
[1643823134576,0.24472445,37386.0,37382.0,0.04502543]
[1643823134777,0.24472445,37386.0,37382.0,0.00010813]
[1643823135177,0.24472445,37386.0,37382.0,0.2066084]
[1643823135778,0.24472445,37386.0,37382.0,0.20671653]
[1643823136601,0.24472445,37386.0,37382.0,0.2066084]
[1643823140055,0.24472445,37386.0,37382.0,0.2734914]
[1643823140261,0.05,37387.0,37382.0,0.57582892]
[1643823140456,0.05,37387.0,37382.0,0.64271118]
[1643823140657,0.05,37387.0,37383.0,0.1]
[1643823140859,0.05,37387.0,37381.0,0.04553402]
[1643823141059,0.05,37387.0,37381.0,0.04542589]
[1643823141263,0.05,37387.0,37381.0,0.11231189]
[1643823141457,0.04955202,37387.0,37381.0,0.1118033]
[1643823141659,0.04955202,37387.0,37381.0,0.11231189]
[1643823141858,0.24149817,37384.0,37383.0,0.25183192]
[1643823142056,0.24149817,37384.0,37381.0,0.04542589]
[1643823142757,0.24149817,37384.0,37379.0,0.00010813]
[1643823142957,0.24149817,37384.0,37381.0,0.21951188]
[1643823143600,0.24149817,37384.0,37381.0,0.21962001]
[1643823143804,0.24149817,37384.0,37381.0,0.21906939]
[1643823144103,0.24149817,37384.0,37381.0,0.21962001]
[1643823144300,0.24149817,37384.0,37381.0,0.21951188]
[1643823145103,0.24149817,37384.0,37381.0,0.21896126]
[1643823145304,0.24149817,37384.0,37381.0,0.21951188]
[1643823145904,0.24149817,37384.0,37381.0,0.00055062]
[1643823146105,0.24149817,37384.0,37380.0,0.04057605]
[1643823146411,0.24149817,37384.0,37381.0,0.00052786]
[1643823146412,0.24244061,37383.0,37381.0,0.00052786]
[1643823147252,0.2277753,37383.0,37381.0,0.00052786]
[1643823147453,0.2277753,37383.0,37380.0,0.04057605]
[1643823147658,0.2293764,37383.0,37380.0,0.04046792]
[1643823147851,0.24149817,37384.0,37380.0,0.04046792]
[1643823148055,0.00043538,37385.0,37382.0,0.27681321]
[1643823148655,0.04955202,37387.0,37380.0,0.17433905]
[1643823148957,0.0004354,37385.0,37380.0,0.13387113]
[1643823149152,0.29971041,37383.0,37380.0,0.13387113]
[1643823149351,0.29971041,37383.0,37380.0,0.20076102]
[1643823149555,0.29971041,37383.0,37382.0,0.26395363]
[1643823149953,0.04955202,37387.0,37382.0,0.31735363]
[1643823150152,0.00060051,37385.0,37383.0,0.15812]
[1643823150352,0.04515253,37387.0,37384.0,0.0534]
[1643823151028,0.23260741,37385.0,37384.0,0.0534]
[1643823151734,0.23260741,37385.0,37380.0,0.05010813]
[1643823151928,0.23260741,37385.0,37380.0,0.05]
[1643823152326,0.2353676,37384.0,37380.0,0.05]
[1643823152527,0.23260741,37385.0,37380.0,0.05]
[1643823152831,0.24431771,37384.0,37380.0,0.05]
[1643823153431,1.65,37383.0,37378.0,0.00161]
[1643823153631,0.6872336,37382.0,37378.0,0.00161]
[1643823153830,1.2801587,37380.0,37379.0,0.00010701]
[1643823154029,1.93115071,37380.0,37378.0,0.00161]
[1643823154233,1.09699913,37379.0,37378.0,0.00161]
[1643823154429,1.57634615,37379.0,37378.0,0.00161]
[1643823155552,1.80685286,37379.0,37378.0,0.00161]
[1643823157156,1.80685286,37379.0,37376.0,0.04171587]
[1643823157157,0.9,37378.0,37376.0,0.04171587]
[1643823157353,0.353993,37377.0,37376.0,0.04171587]
[1643823157554,0.18141972,37378.0,37376.0,0.04171587]
[1643823157752,0.52843401,37379.0,37371.0,0.03227977]
[1643823157753,0.70985373,37379.0,37371.0,0.03227977]
[1643823157952,0.26126015,37378.0,37374.0,0.00328413]
[1643823158820,0.26126015,37378.0,37373.0,0.04671587]
[1643823159225,0.04515254,37381.0,37373.0,0.04671587]
[1643823159428,0.04515254,37381.0,37374.0,0.0534]
[1643823159623,0.04515254,37381.0,37374.0,0.10395119]
[1643823160223,0.04515254,37381.0,37378.0,0.33256442]
[1643823160626,0.04515254,37381.0,37379.0,0.0534]
[1643823161023,0.00484746,37382.0,37379.0,0.0534]
[1643823161826,0.31722727,37383.0,37379.0,0.0534]
[1643823162027,0.31722727,37383.0,37379.0,0.05395111]
[1643823163156,0.31722727,37383.0,37379.0,0.0534]
[1643823163555,0.31722727,37383.0,37379.0,0.0539511]
[1643823163956,0.31722727,37383.0,37379.0,0.1208471]
[1643823164356,0.31722727,37383.0,37379.0,0.120296]
[1643823164560,0.31722727,37383.0,37379.0,0.12080476]
[1643823164856,0.31722727,37383.0,37379.0,0.05390876]
[1643823165455,0.31722727,37383.0,37379.0,0.0534]
[1643823165656,0.31722727,37383.0,37379.0,0.05390876]
[1643823165856,0.04515254,37383.0,37379.0,0.05390876]
[1643823166105,0.04515254,37383.0,37379.0,0.15390876]
[1643823166703,0.04515254,37383.0,37379.0,0.2034]
[1643823166704,0.31315015,37383.0,37379.0,0.2034]
[1643823166905,0.31315015,37383.0,37379.0,0.46058656]
[1643823167107,0.31315015,37383.0,37379.0,0.46664473]
[1643823167307,0.31315015,37383.0,37379.0,0.20390876]
[1643823168006,0.31315015,37383.0,37379.0,0.2034]
[1643823168206,0.31315015,37383.0,37379.0,0.05391459]
[1643823168406,0.53677382,37382.0,37379.0,0.00051459]
[1643823168607,0.353993,37381.0,37379.0,0.00051459]
[1643823169006,0.53541272,37381.0,37379.0,0.00051459]
[1643823169208,1.8848451,37380.0,37377.0,0.00328413]
[1643823169408,0.353993,37379.0,37377.0,0.00328413]
[1643823169612,0.53541272,37379.0,37377.0,0.00328413]
[1643823169854,1.153993,37378.0,37375.0,0.04671587]
[1643823170056,0.86188258,37376.0,37375.0,0.04671587]
[1643823172659,0.86188258,37376.0,37374.0,0.00065614]
[1643823172660,0.86188258,37376.0,37374.0,0.00010587]
[1643823172860,0.86188258,37376.0,37374.0,0.00055027]
[1643823173907,0.86188258,37376.0,37373.0,0.00010587]
[1643823174109,0.86188258,37376.0,37373.0,0.00055028]
[1643823174307,1.0433023,37376.0,37373.0,0.00055028]
[1643823174511,0.4433023,37376.0,37373.0,0.00055028]
[1643823174710,0.04515254,37377.0,37373.0,0.05065615]
[1643823174916,0.04515254,37377.0,37374.0,0.211575]
[1643823175109,0.04515254,37377.0,37375.0,0.158172]
[1643823175409,0.04515254,37377.0,37376.0,0.0534]
[1643823175810,0.29999818,37379.0,37376.0,0.0534]
[1643823176011,0.00484746,37379.0,37376.0,0.287196]
[1643823176214,0.00484746,37379.0,37377.0,0.158161]
[1643823176615,0.00463146,37379.0,37378.0,0.0534]
[1643823176811,0.00463146,37379.0,37378.0,0.311554]
[1643823177014,0.04536854,37381.0,37378.0,0.50332448]
[1643823177256,0.04536854,37381.0,37379.0,0.1]
[1643823177462,0.04536854,37381.0,37380.0,0.0534]
[1643823177957,0.26712319,37382.0,37380.0,0.0534]
[1643823179463,0.5,37379.0,37378.0,0.05]
[1643823179861,0.5,37379.0,37375.0,0.00010587]
[1643823180164,0.27816174,37376.0,37374.0,0.00010587]
[1643823180560,0.27816174,37376.0,37374.0,0.06701287]
[1643823180760,0.27816174,37376.0,37374.0,0.066907]
[1643823181208,0.27816174,37376.0,37372.0,0.05]
[1643823181406,0.27816174,37376.0,37372.0,0.05010587]
[1643823182008,0.32353028,37376.0,37372.0,0.00010587]
[1643823182306,0.32353028,37376.0,37371.0,0.03017701]
[1643823182905,0.39044728,37376.0,37371.0,0.08017701]
[1643823183708,0.39044728,37376.0,37372.0,0.00055018]
[1643823184005,0.39044728,37376.0,37372.0,0.00065605]
[1643823184205,0.00020024,37375.0,37372.0,0.00065605]
[1643823184761,0.00020024,37375.0,37372.0,0.00010587]
[1643823184959,0.00020024,37375.0,37372.0,0.00055018]
[1643823185562,0.00020024,37375.0,37372.0,0.00065605]
[1643823185959,0.00020024,37375.0,37372.0,0.00010587]
[1643823186159,0.00020024,37375.0,37372.0,0.00055018]
[1643823186759,0.00020024,37375.0,37372.0,0.00065605]
[1643823187158,0.00020024,37375.0,37372.0,0.00010587]
[1643823187360,0.00020024,37375.0,37371.0,0.08017701]
[1643823187562,0.35354096,37374.0,37372.0,0.00055018]
[1643823187762,0.35338878,37374.0,37372.0,0.00055018]
[1643823187964,0.81452094,37373.0,37372.0,0.00055018]
[1643823188161,1.16851394,37373.0,37372.0,0.00055018]
[1643823188508,1.16851394,37373.0,37371.0,0.03017701]
[1643823188707,1.004057,37372.0,37371.0,0.03007114]
[1643823188907,1.003841,37372.0,37371.0,0.03007114]
[1643823189107,0.83141972,37372.0,37371.0,0.03007114]
[1643823189308,0.18141972,37373.0,37371.0,0.03007114]
[1643823189508,0.7634404,37371.0,37369.0,0.002]
[1643823189710,0.91043999,37370.0,37369.0,0.002]
[1643823190008,0.91043999,37370.0,37367.0,0.04810588]
[1643823190207,0.55638199,37370.0,37367.0,0.04810588]
[1643823190412,0.47829876,37370.0,37367.0,0.04810588]
[1643823190614,0.29687904,37370.0,37367.0,0.02810588]
[1643823191009,0.29687904,37370.0,37366.0,0.49499412]
[1643823191209,0.29687904,37370.0,37366.0,0.44499412]
[1643823191609,0.29687904,37370.0,37366.0,0.51191412]
[1643823191808,0.29646804,37370.0,37366.0,0.51191412]
[1643823192108,0.52838794,37370.0,37366.0,0.49002]
[1643823192362,0.52838794,37370.0,37366.0,0.4236493]
[1643823193264,0.52838794,37370.0,37366.0,0.4231]
[1643823193461,0.52728372,37370.0,37366.0,0.4236493]
[1643823193660,0.3701934,37368.0,37366.0,0.4236493]
[1643823193861,0.23706991,37369.0,37366.0,0.4236493]
[1643823194268,0.00020933,37369.0,37366.0,0.4736493]
[1643823194464,0.00020933,37369.0,37367.0,0.06692]
[1643823195164,0.00020933,37369.0,37366.0,0.42364931]
[1643823195565,0.00020933,37369.0,37367.0,0.259028]
[1643823195768,0.00020933,37369.0,37368.0,0.509024]
[1643823196005,0.00020933,37369.0,37368.0,0.159024]
[1643823196205,0.00020933,37369.0,37367.0,0.05]
[1643823196606,0.00020933,37369.0,37366.0,0.47364931]
[1643823196807,0.00020933,37369.0,37366.0,0.4731]
[1643823196808,0.22834966,37369.0,37366.0,0.4731]
[1643823197010,0.22834966,37369.0,37366.0,0.4236493]
[1643823197209,0.354058,37368.0,37366.0,0.4236493]
[1643823197510,0.73875794,37367.0,37366.0,0.4236493]
[1643823197709,1.07612356,37367.0,37366.0,0.4236493]
[1643823197910,1.25754328,37367.0,37366.0,0.4236493]
[1643823198112,1.07612356,37367.0,37366.0,0.4231]
[1643823198313,1.25701484,37367.0,37366.0,0.4231]
[1643823198509,1.07559512,37367.0,37366.0,0.4231]
[1643823198709,1.25701484,37367.0,37366.0,0.4231]
[1643823199311,1.24201484,37367.0,37366.0,0.4231]
[1643823199513,0.75870722,37367.0,37366.0,0.4231]
[1643823199957,0.5772875,37367.0,37366.0,0.4231]
[1643823200161,0.354058,37367.0,37366.0,0.4231]
[1643823200361,0.00016763,37368.0,37366.0,0.4231]
[1643823200362,0.22785756,37368.0,37366.0,0.4231]
[1643823200762,0.22785756,37368.0,37366.0,0.42252169]
[1643823201762,0.22785756,37368.0,37366.0,0.41752169]
[1643823202864,0.13342163,37369.0,37366.0,0.49483149]
[1643823203064,0.06649263,37369.0,37366.0,0.49483149]
[1643823203263,0.06649263,37369.0,37366.0,0.41752169]
[1643823204122,0.06649263,37369.0,37366.0,0.418071]
[1643823204320,0.13342363,37369.0,37366.0,0.418071]
[1643823205118,0.22870961,37368.0,37366.0,0.41752169]
[1643823205320,0.22870961,37368.0,37366.0,0.41768648]
[1643823206319,0.22870961,37368.0,37366.0,0.41752169]
[1643823206521,0.49992273,37370.0,37366.0,0.41752169]
[1643823206720,0.49992273,37370.0,37366.0,0.41762759]
[1643823207123,0.5278853,37370.0,37366.0,0.41762759]
[1643823207762,0.5278853,37370.0,37366.0,0.41817689]
[1643823208666,0.2978521,37370.0,37366.0,0.41817689]
[1643823208862,0.2978521,37370.0,37366.0,0.41762759]
[1643823209264,0.2978521,37370.0,37366.0,0.41317689]
[1643823209462,0.02796257,37370.0,37366.0,0.46657689]
[1643823209666,0.02296257,37370.0,37367.0,0.26870839]
[1643823209865,0.02296257,37370.0,37367.0,0.26881429]
[1643823210072,0.43649836,37371.0,37368.0,0.0534]
[1643823210073,0.22678826,37371.0,37368.0,0.0534]
[1643823210267,0.04536854,37371.0,37369.0,0.159022]
[1643823210465,0.04536854,37371.0,37370.0,0.69953651]
[1643823210667,0.04536854,37371.0,37370.0,0.45854851]
[1643823210866,0.8022,37372.0,37370.0,0.50854851]
[1643823211110,0.8022,37372.0,37370.0,0.58565177]
[1643823211515,0.8022,37372.0,37370.0,0.48335351]
[1643823212715,0.8022,37372.0,37370.0,0.80428432]
[1643823212915,0.8022,37372.0,37371.0,0.159006]
[1643823213114,0.8022,37372.0,37371.0,0.0534]
[1643823213716,0.78614411,37372.0,37371.0,0.0534]
[1643823214215,0.78614411,37372.0,37371.0,0.1534]
[1643823214414,0.78614411,37372.0,37371.0,0.0534]
[1643823214614,0.78614411,37372.0,37371.0,0.12864562]
[1643823214860,0.78614411,37372.0,37371.0,0.22864562]
[1643823215058,0.78614411,37372.0,37371.0,0.1534]
[1643823215263,0.98196642,37372.0,37371.0,0.0534]
[1643823216060,0.78614411,37372.0,37371.0,0.0534]
[1643823227513,0.78614411,37372.0,37371.0,0.212406]
[1643823228113,0.78614411,37372.0,37371.0,0.0534]
[1643823229969,0.78614411,37372.0,37371.0,0.1034]
[1643823230174,0.78614411,37372.0,37371.0,0.5604613]
[1643823230373,0.78614411,37372.0,37371.0,1.68081029]
[1643823231377,0.78614411,37372.0,37371.0,2.74821029]
[1643823231875,0.04536854,37374.0,37371.0,2.74821029]
[1643823231876,0.04536854,37374.0,37372.0,1.65]
[1643823232080,0.04536854,37374.0,37373.0,2.86358324]
[1643823232475,0.04536854,37374.0,37373.0,3.03047324]
[1643823232674,0.02058617,37383.0,37374.0,1.65]
[1643823232877,0.02058617,37383.0,37382.0,0.67490428]
[1643823233076,0.39679428,37388.0,37382.0,0.57926092]
[1643823233077,0.02038049,37386.0,37382.0,0.57926092]
[1643823233279,0.00057177,37384.0,37383.0,0.916883]
[1643823233515,0.00057177,37384.0,37383.0,1.129218]
[1643823233715,0.00057177,37384.0,37383.0,1.36063516]
[1643823234115,0.07038049,37386.0,37383.0,1.36063516]
[1643823234320,0.00054976,37385.0,37384.0,0.158928]
[1643823234515,0.00054976,37385.0,37384.0,0.929728]
[1643823234719,0.00054976,37385.0,37384.0,1.079728]
[1643823235115,0.25568572,37394.0,37386.0,1.65]
[1643823235320,0.23050671,37399.0,37393.0,0.6674]
[1643823235517,0.23050671,37399.0,37395.0,0.6674]
[1643823235518,0.00017829,37398.0,37395.0,0.6674]
[1643823235716,0.00017829,37398.0,37396.0,0.312256]
[1643823235916,0.00017829,37398.0,37397.0,0.808851]
[1643823236114,0.01,37403.0,37397.0,0.49190748]
[1643823236316,0.05,37399.0,37398.0,0.1]
[1643823236513,0.05,37399.0,37398.0,0.312242]
[1643823237377,0.05,37399.0,37398.0,1.062242]
[1643823238168,0.05,37399.0,37398.0,1.812242]
[1643823238368,0.00043456,37400.0,37399.0,0.05]
[1643823238570,0.00043456,37400.0,37399.0,1.162238]
[1643823238769,0.00043456,37400.0,37399.0,1.37909]
[1643823238971,0.00017829,37402.0,37399.0,2.04649]
[1643823239168,0.01,37403.0,37400.0,1.02678274]
[1643823239169,0.01017829,37403.0,37400.0,1.02678274]
[1643823239372,0.00043456,37401.0,37400.0,1.01795074]
[1643823239569,0.00043456,37401.0,37400.0,1.23018274]
[1643823239975,0.00043456,37401.0,37400.0,1.163332]
[1643823240172,0.00017829,37403.0,37400.0,1.013332]
[1643823240375,0.24860241,37403.0,37400.0,0.7208]
[1643823240572,0.00059969,37402.0,37400.0,0.7208]
[1643823241411,0.28528846,37403.0,37400.0,0.7208]
[1643823241611,0.28244729,37403.0,37400.0,0.7208]
[1643823241813,0.28244729,37403.0,37396.0,0.02810588]
[1643823241814,0.354058,37402.0,37396.0,0.02810588]
[1643823242112,0.28244729,37403.0,37396.0,0.02810588]
[1643823242113,0.27303354,37401.0,37396.0,0.02810588]
[1643823242517,0.61244012,37401.0,37396.0,0.02810588]
[1643823242715,0.354058,37400.0,37396.0,0.02810588]
[1643823242915,0.23902789,37399.0,37396.0,0.02810588]
[1643823243315,0.0007564,37400.0,37396.0,0.02810588]
[1643823243718,0.00017829,37400.0,37391.0,0.066875]
[1643823243923,0.454058,37399.0,37385.0,0.133753]
[1643823244221,0.454058,37399.0,37381.0,0.13983983]
[1643823244222,0.066889,37395.0,37393.0,0.02189412]
[1643823244417,0.066889,37395.0,37381.0,0.04039193]
[1643823244418,1.25,37393.0,37381.0,0.04039193]
[1643823244624,1.25,37393.0,37381.0,0.0005521]
[1643823244625,0.24314225,37386.0,37381.0,0.0005521]
[1643823244872,0.2033225,37390.0,37381.0,0.0005521]
[1643823245069,0.2033225,37390.0,37380.0,0.066895]
[1643823245264,0.05,37386.0,37381.0,0.05]
[1643823245464,0.05,37386.0,37381.0,0.13195748]
[1643823245667,0.05,37386.0,37382.0,0.22632809]
[1643823246065,0.05,37386.0,37382.0,0.46010009]
[1643823246367,0.05,37386.0,37383.0,0.30655024]
[1643823246765,0.05,37386.0,37382.0,0.46010009]
[1643823247266,0.00058002,37387.0,37382.0,0.233772]
[1643823247465,0.23513026,37389.0,37382.0,0.233772]
[1643823247670,0.23513026,37389.0,37382.0,0.133772]
[1643823247868,0.36847822,37386.0,37382.0,0.133772]
[1643823248069,0.29362156,37384.0,37382.0,0.133772]
[1643823248514,0.06747602,37387.0,37382.0,0.133772]
[1643823248713,0.066896,37387.0,37382.0,0.133772]
[1643823248916,0.00057337,37387.0,37382.0,0.133772]
[1643823249512,0.00020067,37385.0,37382.0,0.133772]
[1643823250615,0.00020067,37385.0,37382.0,0.183772]
[1643823251717,0.00020067,37385.0,37383.0,0.133773]
[1643823252115,0.00020067,37385.0,37383.0,0.233773]
[1643823253161,0.00020067,37385.0,37383.0,0.133773]
[1643823253360,0.00020067,37385.0,37383.0,0.233773]
[1643823254167,0.00020067,37385.0,37383.0,0.287173]
[1643823254168,0.00010629,37385.0,37383.0,0.287173]
[1643823254962,1.65,37384.0,37374.0,0.01359295]
[1643823255166,1.65,37384.0,37373.0,0.19772846]
[1643823255167,1.35,37382.0,37373.0,0.19772846]
[1643823255371,1.35,37382.0,37373.0,0.0011]
[1643823255372,0.60731792,37381.0,37373.0,0.0011]
[1643823255566,0.354058,37380.0,37373.0,0.0011]
[1643823256012,0.23383183,37377.0,37374.0,0.05]
[1643823256214,1.47654392,37376.0,37374.0,0.05]
[1643823256414,1.054058,37375.0,37374.0,0.05]
[1643823257015,1.054058,37375.0,37373.0,0.0011]
[1643823257216,1.054058,37374.0,37373.0,0.0011]
[1643823258022,1.404058,37374.0,37373.0,0.0011]
[1643823259016,1.854058,37374.0,37373.0,0.0011]
[1643823260062,1.404058,37374.0,37373.0,0.0011]
[1643823260860,1.054058,37374.0,37373.0,0.0011]
[1643823261957,1.404058,37374.0,37373.0,0.0011]
[1643823262961,1.054058,37374.0,37373.0,0.0011]
[1643823263263,0.354058,37374.0,37373.0,0.0011]
[1643823263517,0.20980618,37375.0,37373.0,0.0011]
[1643823264114,0.00011037,37375.0,37374.0,0.10122982]
[1643823264314,0.80231,37376.0,37375.0,0.23879847]
[1643823264512,0.80231,37376.0,37374.0,0.10122982]
[1643823264713,0.80290952,37376.0,37374.0,0.10122982]
[1643823265514,0.80231,37376.0,37374.0,0.10122982]
[1643823266114,0.80231,37376.0,37374.0,0.16813682]
[1643823266516,0.80231,37376.0,37375.0,0.22578463]
[1643823266917,0.80231,37376.0,37375.0,0.27918463]
[1643823267962,0.80231,37376.0,37375.0,0.72918463]
[1643823268162,0.80231,37376.0,37375.0,0.82918463]
[1643823268367,0.80231,37376.0,37375.0,0.37918463]
[1643823269365,0.80242064,37376.0,37375.0,0.37918463]
[1643823270567,0.80242064,37376.0,37375.0,0.53816963]
[1643823271616,0.80242064,37376.0,37375.0,0.37918463]
[1643823273017,0.80242064,37376.0,37375.0,0.32578463]
[1643823273418,0.80242064,37376.0,37374.0,0.066907]
[1643823273619,0.80242064,37376.0,37373.0,0.134902]
[1643823273824,0.80242064,37376.0,37373.0,0.0011]
[1643823274421,1.02878921,37376.0,37373.0,0.0011]
[1643823275267,1.02818919,37376.0,37373.0,0.0011]
[1643823275667,1.02877692,37376.0,37373.0,0.0011]
[1643823275867,0.61076415,37375.0,37373.0,0.0011]
[1643823276068,2.65455368,37374.0,37373.0,0.0011]
[1643823276478,1.35,37373.0,37371.0,0.0159287]
[1643823276669,1.40455368,37374.0,37371.0,0.0159287]
[1643823276670,1.854058,37372.0,37371.0,0.0159287]
[1643823276874,2.656368,37372.0,37371.0,0.0159287]
[1643823277068,2.656368,37372.0,37369.0,0.0340713]
[1643823277268,0.71511098,37371.0,37369.0,0.0340713]
[1643823277469,2.54199854,37370.0,37369.0,0.0340713]
[1643823277870,1.39199854,37370.0,37367.0,0.0160346]
[1643823278073,1.03794054,37370.0,37368.0,0.0004426]
[1643823278612,0.74477146,37369.0,37368.0,0.0004426]
[1643823278816,1.54708146,37369.0,37367.0,0.0160346]
[1643823279015,0.22966806,37368.0,37366.0,0.4572772]
[1643823279415,0.80231,37369.0,37366.0,0.4572772]
[1643823279614,0.80231,37369.0,37366.0,0.5071713]
[1643823279813,0.80231,37369.0,37367.0,0.1]
[1643823280414,0.80184551,37369.0,37367.0,0.1]
[1643823280819,0.80184551,37369.0,37367.0,0.166917]
[1643823281012,0.80184551,37369.0,37368.0,0.159024]
[1643823281717,0.80184551,37369.0,37368.0,0.30799335]
[1643823281913,0.80184551,37369.0,37368.0,0.46701735]
[1643823283365,0.80184551,37369.0,37367.0,0.06756943]
[1643823283563,0.80184551,37369.0,37367.0,0.06746353]
[1643823283763,3.42049561,37369.0,37367.0,0.066917]
[1643823283963,0.72204554,37368.0,37367.0,0.06746353]
[1643823284162,0.72204554,37368.0,37367.0,0.00054653]
[1643823284564,0.57610354,37368.0,37367.0,0.00054653]
[1643823284964,3.65818486,37369.0,37366.0,0.4232059]
[1643823285164,3.42066561,37369.0,37366.0,0.42364655]
[1643823285364,0.80201551,37369.0,37366.0,0.49056755]
[1643823285564,0.80201551,37369.0,37367.0,0.15903]
[1643823285765,0.80201551,37369.0,37367.0,0.35903]
[1643823286019,0.80201551,37369.0,37367.0,0.2]
[1643823286421,0.80201551,37369.0,37367.0,0.15]
[1643823287026,0.80201551,37369.0,37367.0,0.283818]
[1643823287621,0.80201551,37369.0,37367.0,0.183818]
[1643823288021,0.80201551,37369.0,37366.0,0.42367507]
[1643823288223,0.80201551,37369.0,37366.0,0.47367507]
[1643823288424,0.80201551,37369.0,37366.0,0.5401279]
[1643823288623,0.80201551,37369.0,37366.0,0.54059708]
[1643823289630,0.80201551,37369.0,37366.0,0.5401279]
[1643823289868,0.80201551,37369.0,37366.0,0.54063776]
[1643823290866,0.80201551,37369.0,37366.0,0.5401279]
[1643823291067,0.80201551,37369.0,37366.0,0.54063776]
[1643823291668,0.80201551,37369.0,37366.0,0.42371576]
[1643823292069,0.80201551,37369.0,37366.0,0.4232059]
[1643823292469,0.80201551,37369.0,37366.0,0.42371576]
[1643823292871,0.80201551,37369.0,37366.0,0.49063676]
[1643823293271,0.80201551,37369.0,37366.0,0.4901269]
[1643823293515,0.80201551,37369.0,37366.0,0.49063392]
[1643823294316,0.80201551,37369.0,37366.0,0.54063392]
[1643823294516,0.80201551,37369.0,37366.0,0.5401269]
[1643823294919,0.80201551,37369.0,37366.0,0.54063392]
[1643823295120,0.80201551,37369.0,37367.0,0.159029]
[1643823295315,0.80201551,37369.0,37367.0,0.58066024]
[1643823295614,0.80201551,37369.0,37367.0,0.42163124]
[1643823296216,0.80201551,37369.0,37368.0,0.05]
[1643823296618,0.80201551,37369.0,37368.0,0.859024]
[1643823296820,0.80201551,37369.0,37368.0,0.209024]
[1643823297666,0.80201551,37369.0,37368.0,0.05]
[1643823298768,0.80201551,37369.0,37368.0,0.045]
[1643823298968,0.80201551,37369.0,37367.0,0.13447217]
[1643823299174,0.80201551,37369.0,37367.0,0.00054527]
[1643823299372,0.22387393,37368.0,37366.0,0.4232059]
[1643823299570,0.22387393,37368.0,37366.0,0.42375117]
[1643823299770,0.22387393,37368.0,37366.0,0.42364527]
[1643823300170,0.22387393,37368.0,37366.0,0.47364527]
[1643823300370,0.80201551,37369.0,37366.0,0.47364527]
[1643823300571,0.80201551,37369.0,37366.0,0.4232059]
[1643823301622,0.22803779,37368.0,37366.0,0.4232059]
[1643823301922,0.22803779,37368.0,37366.0,0.4231]
[1643823302121,0.22803779,37368.0,37366.0,0.42364655]
[1643823302922,0.80201551,37369.0,37366.0,0.42364655]
[1643823303125,0.80201551,37369.0,37366.0,0.5401279]
[1643823303322,0.80201551,37369.0,37366.0,0.4901279]
[1643823303923,0.80201551,37369.0,37366.0,0.4232059]
[1643823304325,1.20017034,37367.0,37366.0,0.42370924]
[1643823304626,1.55422834,37367.0,37366.0,0.42360334]
[1643823304901,0.00017034,37367.0,37366.0,0.42360334]
[1643823305504,0.00017034,37367.0,37366.0,0.4231]
[1643823306004,0.00017034,37367.0,37366.0,0.4731]
[1643823306203,0.00017034,37367.0,37366.0,0.632136]
[1643823306403,0.05,37372.0,37367.0,1.4]
[1643823306404,0.03970368,37372.0,37367.0,1.4]
[1643823306605,0.03970368,37372.0,37368.0,0.93600399]